[Event "Titled Tuesday Blitz December 7 2021"]
[White "Odegov, Artem"]
[Black "Dronavalli, Harika"]
[WhiteFideId "34183644"]
[BlackFideId "5015197"]
[WhiteElo "2274"]
[BlackElo "2382"]
[Result "1-0"]
[Round "10"]
[TimeControl "180+1"]
[Date "2021.12.07"]
[WhiteClock "0:00:13"]
[BlackClock "0:00:16"]

1. d4 {[%clk 0:03:00]}  d5 {[%clk 0:02:59]} 2. c4 {[%clk 0:03:01]}  e6 {[%clk 0:02:59]} 3. Nf3 {[%clk 0:03:02]}  Nf6 {[%clk 0:02:57]} 4. Nc3 {[%clk 0:03:02]}  Bb4 {[%clk 0:02:57]} 5. Bg5 {[%clk 0:03:01]}  h6 {[%clk 0:02:54]} 6. Bxf6 {[%clk 0:03:01]}  Qxf6 {[%clk 0:02:54]} 7. e3 {[%clk 0:03:02]}  O-O {[%clk 0:02:50]} 8. Be2 {[%clk 0:03:02]}  c5 {[%clk 0:02:43]} 9. O-O {[%clk 0:03:02]}  Bxc3 {[%clk 0:02:43]} 10. bxc3 {[%clk 0:03:01]}  dxc4 {[%clk 0:02:43]} 11. Bxc4 {[%clk 0:03:01]}  b6 {[%clk 0:02:43]} 12. e4 {[%clk 0:02:40]}  Bb7 {[%clk 0:02:42]} 13. Qe2 {[%clk 0:02:40]}  Nd7 {[%clk 0:02:34]} 14. Rad1 {[%clk 0:02:39]}  Rfe8 {[%clk 0:02:23]} 15. Bb3 {[%clk 0:02:37]}  Bc6 {[%clk 0:02:11]} 16. Rfe1 {[%clk 0:02:31]}  Rac8 {[%clk 0:02:08]} 17. Qe3 {[%clk 0:02:30]}  Qe7 {[%clk 0:01:57]} 18. Qd2 {[%clk 0:01:25]}  cxd4 {[%clk 0:01:49]} 19. cxd4 {[%clk 0:01:26]}  Bb7 {[%clk 0:01:42]} 20. Qe3 {[%clk 0:01:25]}  Nf6 {[%clk 0:01:40]} 21. Qd3 {[%clk 0:01:21]}  Red8 {[%clk 0:01:35]} 22. Ne5 {[%clk 0:01:21]}  Qc7 {[%clk 0:01:33]} 23. h3 {[%clk 0:01:07]}  Qc3 {[%clk 0:01:32]} 24. f3 {[%clk 0:00:43]}  Qxd3 {[%clk 0:01:31]} 25. Rxd3 {[%clk 0:00:44]}  b5 {[%clk 0:01:23]} 26. Red1 {[%clk 0:00:42]}  a5 {[%clk 0:01:23]} 27. a3 {[%clk 0:00:41]}  Ba6 {[%clk 0:01:19]} 28. R3d2 {[%clk 0:00:39]}  Rc3 {[%clk 0:01:16]} 29. Rb1 {[%clk 0:00:35]}  a4 {[%clk 0:01:13]} 30. Bd1 {[%clk 0:00:31]}  Rxa3 {[%clk 0:01:13]} 31. Be2 {[%clk 0:00:31]}  Rb3 {[%clk 0:01:03]} 32. Rxb3 {[%clk 0:00:31]}  axb3 {[%clk 0:01:04]} 33. Nc6 {[%clk 0:00:32]}  Rd7 {[%clk 0:00:57]} 34. Rb2 {[%clk 0:00:25]}  Bb7 {[%clk 0:00:55]} 35. Na5 {[%clk 0:00:23]}  Ba6 {[%clk 0:00:51]} 36. Nxb3 {[%clk 0:00:23]}  Rc7 {[%clk 0:00:44]} 37. Nc5 {[%clk 0:00:22]}  Rc6 {[%clk 0:00:42]} 38. Bxb5 {[%clk 0:00:20]}  Bxb5 {[%clk 0:00:42]} 39. Rxb5 {[%clk 0:00:21]}  Kh7 {[%clk 0:00:41]} 40. Rb7 {[%clk 0:00:19]}  Kg6 {[%clk 0:00:41]} 41. Kh2 {[%clk 0:00:17]}  h5 {[%clk 0:00:41]} 42. Ra7 {[%clk 0:00:16]}  Rb6 {[%clk 0:00:39]} 43. Nd3 {[%clk 0:00:16]}  Kh6 {[%clk 0:00:21]} 44. Ne5 {[%clk 0:00:13]}  Rb4 {[%clk 0:00:20]} 45. Nxf7+ {[%clk 0:00:12]}  Kg6 {[%clk 0:00:20]} 46. Ne5+ {[%clk 0:00:12]}  Kh7 {[%clk 0:00:20]} 47. Nc6 {[%clk 0:00:12]}  Rc4 {[%clk 0:00:20]} 48. Rc7 {[%clk 0:00:12]}  Ne8 {[%clk 0:00:20]} 49. Re7 {[%clk 0:00:12]}  Nd6 {[%clk 0:00:19]} 50. d5 {[%clk 0:00:08]}  exd5 {[%clk 0:00:18]} 51. exd5 {[%clk 0:00:09]}  Rc5 {[%clk 0:00:17]} 52. Re5 {[%clk 0:00:09]}  Nf7 {[%clk 0:00:18]} 53. Rf5 {[%clk 0:00:08]}  Nd6 {[%clk 0:00:16]} 54. Rxh5+ {[%clk 0:00:07]}  Kg6 {[%clk 0:00:16]} 55. Re5 {[%clk 0:00:08]}  Nf7 {[%clk 0:00:15]} 56. Re6+ {[%clk 0:00:08]}  Kh7 {[%clk 0:00:16]} 57. Ne7 {[%clk 0:00:08]}  Ng5 {[%clk 0:00:15]} 58. Re2 {[%clk 0:00:05]}  Rc3 {[%clk 0:00:14]} 59. d6 {[%clk 0:00:05]}  Rd3 {[%clk 0:00:15]} 60. Nf5 {[%clk 0:00:05]}  Kg6 {[%clk 0:00:15]} 61. Nh4+ {[%clk 0:00:04]}  Kh5 {[%clk 0:00:15]} 62. Nf5 {[%clk 0:00:04]}  Kg6 {[%clk 0:00:15]} 63. Ne7+ {[%clk 0:00:04]}  Kf7 {[%clk 0:00:15]} 64. Nc8 {[%clk 0:00:04]}  Ne6 {[%clk 0:00:13]} 65. Re5 {[%clk 0:00:02]}  g6 {[%clk 0:00:12]} 66. Re4 {[%clk 0:00:02]}  Kf6 {[%clk 0:00:12]} 67. Ne7 {[%clk 0:00:02]}  Rxd6 {[%clk 0:00:11]} 68. Nc8 {[%clk 0:00:03]}  Rd2 {[%clk 0:00:11]} 69. Nb6 {[%clk 0:00:03]}  Ng5 {[%clk 0:00:11]} 70. Rf4+ {[%clk 0:00:02]}  Ke5 {[%clk 0:00:11]} 71. Rg4 {[%clk 0:00:02]}  Nxf3+ {[%clk 0:00:11]} 72. Kg3 {[%clk 0:00:03]}  Ne1 {[%clk 0:00:11]} 73. Nc4+ {[%clk 0:00:03]}  Kf5 {[%clk 0:00:11]} 74. Nxd2 {[%clk 0:00:04]}  Nd3 {[%clk 0:00:10]} 75. Nf3 {[%clk 0:00:05]}  Kf6 {[%clk 0:00:09]} 76. Rf4+ {[%clk 0:00:05]}  Nxf4 {[%clk 0:00:09]} 77. Kxf4 {[%clk 0:00:06]}  Ke6 {[%clk 0:00:10]} 78. Ng5+ {[%clk 0:00:06]}  Kf6 {[%clk 0:00:10]} 79. h4 {[%clk 0:00:07]}  Kg7 {[%clk 0:00:10]} 80. g4 {[%clk 0:00:08]}  Kh6 {[%clk 0:00:11]} 81. Ke5 {[%clk 0:00:08]}  Kg7 {[%clk 0:00:11]} 82. Ke6 {[%clk 0:00:08]}  Kh6 {[%clk 0:00:12]} 83. Nf3 {[%clk 0:00:08]}  Kg7 {[%clk 0:00:12]} 84. g5 {[%clk 0:00:08]}  Kh7 {[%clk 0:00:13]} 85. Kf6 {[%clk 0:00:09]}  Kg8 {[%clk 0:00:13]} 86. Kxg6 {[%clk 0:00:09]}  Kh8 {[%clk 0:00:14]} 87. h5 {[%clk 0:00:10]}  Kg8 {[%clk 0:00:13]} 88. h6 {[%clk 0:00:11]}  Kh8 {[%clk 0:00:13]} 89. Kf6 {[%clk 0:00:11]}  Kh7 {[%clk 0:00:14]} 90. g6+ {[%clk 0:00:12]}  Kxh6 {[%clk 0:00:15]} 91. g7 {[%clk 0:00:12]}  Kh5 {[%clk 0:00:15]} 92. g8=Q {[%clk 0:00:12]}  Kh6 {[%clk 0:00:16]} 93. Qg6# {[%clk 0:00:13]} 1-0


[Site "https://www.chess.com"]

[Event "Titled Tuesday Blitz December 7 2021"]
[White "Orlov, Georgi"]
[Black "Shvedova, Alexandra"]
[WhiteFideId "2011271"]
[BlackFideId "54154782"]
[WhiteElo "2463"]
[BlackElo "1920"]
[Result "1-0"]
[Round "10"]
[TimeControl "180+1"]
[Date "2021.12.07"]
[WhiteClock "0:00:13"]
[BlackClock "0:00:04"]

1. d4 {[%clk 0:03:00]}  Nf6 {[%clk 0:02:59]} 2. Nf3 {[%clk 0:03:01]}  d5 {[%clk 0:02:59]} 3. c4 {[%clk 0:03:01]}  e6 {[%clk 0:02:59]} 4. Nc3 {[%clk 0:02:59]}  dxc4 {[%clk 0:02:59]} 5. e3 {[%clk 0:02:58]}  a6 {[%clk 0:02:57]} 6. a4 {[%clk 0:02:53]}  b6 {[%clk 0:02:57]} 7. Bxc4 {[%clk 0:02:53]}  Bb7 {[%clk 0:02:58]} 8. O-O {[%clk 0:02:51]}  Nbd7 {[%clk 0:02:58]} 9. Qe2 {[%clk 0:02:50]}  c5 {[%clk 0:02:57]} 10. Rd1 {[%clk 0:02:49]}  Qc7 {[%clk 0:02:53]} 11. d5 {[%clk 0:02:39]}  exd5 {[%clk 0:02:51]} 12. Nxd5 {[%clk 0:02:37]}  Nxd5 {[%clk 0:02:51]} 13. Bxd5 {[%clk 0:02:37]}  Bxd5 {[%clk 0:02:52]} 14. Rxd5 {[%clk 0:02:37]}  Be7 {[%clk 0:02:43]} 15. e4 {[%clk 0:02:30]}  O-O {[%clk 0:02:41]} 16. e5 {[%clk 0:02:11]}  Qc6 {[%clk 0:02:35]} 17. Rd1 {[%clk 0:02:07]}  b5 {[%clk 0:02:30]} 18. Bg5 {[%clk 0:01:58]}  Bxg5 {[%clk 0:02:26]} 19. Nxg5 {[%clk 0:01:57]}  h6 {[%clk 0:02:17]} 20. Rd6 {[%clk 0:01:41]}  Qc7 {[%clk 0:02:10]} 21. Nf3 {[%clk 0:01:33]}  Rfe8 {[%clk 0:02:05]} 22. Rad1 {[%clk 0:01:30]}  Nb6 {[%clk 0:01:49]} 23. axb5 {[%clk 0:01:27]}  c4 {[%clk 0:01:21]} 24. Qe3 {[%clk 0:01:18]}  Na4 {[%clk 0:01:09]} 25. b6 {[%clk 0:01:16]}  Qc5 {[%clk 0:00:48]} 26. Qxc5 {[%clk 0:00:35]}  Nxc5 {[%clk 0:00:49]} 27. R1d4 {[%clk 0:00:33]}  Nb7 {[%clk 0:00:36]} 28. Rd7 {[%clk 0:00:31]}  Nc5 {[%clk 0:00:36]} 29. R7d5 {[%clk 0:00:28]}  Na4 {[%clk 0:00:35]} 30. b7 {[%clk 0:00:26]}  Rab8 {[%clk 0:00:34]} 31. Rd7 {[%clk 0:00:24]}  Nxb2 {[%clk 0:00:30]} 32. e6 {[%clk 0:00:21]}  fxe6 {[%clk 0:00:22]} 33. Ne5 {[%clk 0:00:20]}  c3 {[%clk 0:00:21]} 34. Rc7 {[%clk 0:00:20]}  c2 {[%clk 0:00:17]} 35. Rb4 {[%clk 0:00:20]}  c1=Q+ {[%clk 0:00:04]} 36. Rxc1 {[%clk 0:00:19]}  Re7 {[%clk 0:00:04]} 37. Rc8+ {[%clk 0:00:15]}  Kh7 {[%clk 0:00:04]} 38. Rxb8 {[%clk 0:00:15]}  Nc4 {[%clk 0:00:04]} 39. Rxc4 {[%clk 0:00:13]}  a5 {[%clk 0:00:05]} 40. Rcc8 {[%clk 0:00:13]}  Re8 {[%clk 0:00:03]} 41. Rxe8 {[%clk 0:00:13]}  g5 {[%clk 0:00:04]} 42. Re7# {[%clk 0:00:13]} 1-0


[Site "https://www.chess.com"]

[Event "Titled Tuesday Blitz December 7 2021"]
[White "Pham, Le Thao Nguyen"]
[Black "Holtel, Jasper"]
[WhiteFideId "12401226"]
[BlackFideId "12956376"]
[WhiteElo "2286"]
[BlackElo "2380"]
[Result "1-0"]
[Round "10"]
[TimeControl "180+1"]
[Date "2021.12.07"]
[WhiteClock "0:00:28"]
[BlackClock "0:00:13"]

1. d4 {[%clk 0:03:00]}  d5 {[%clk 0:02:59]} 2. Nf3 {[%clk 0:02:59]}  e6 {[%clk 0:02:58]} 3. c4 {[%clk 0:02:58]}  Nf6 {[%clk 0:02:57]} 4. Nc3 {[%clk 0:02:58]}  Be7 {[%clk 0:02:57]} 5. Bf4 {[%clk 0:02:57]}  O-O {[%clk 0:02:50]} 6. e3 {[%clk 0:02:57]}  c5 {[%clk 0:02:39]} 7. cxd5 {[%clk 0:02:47]}  exd5 {[%clk 0:02:38]} 8. Be2 {[%clk 0:02:45]}  Nc6 {[%clk 0:02:37]} 9. O-O {[%clk 0:02:44]}  c4 {[%clk 0:02:31]} 10. Ne5 {[%clk 0:02:44]}  Be6 {[%clk 0:02:17]} 11. Nxc6 {[%clk 0:02:42]}  bxc6 {[%clk 0:02:17]} 12. b3 {[%clk 0:02:42]}  Qa5 {[%clk 0:01:53]} 13. Na4 {[%clk 0:02:24]}  Ne4 {[%clk 0:01:47]} 14. Qc2 {[%clk 0:02:22]}  cxb3 {[%clk 0:01:30]} 15. axb3 {[%clk 0:02:21]}  Qd2 {[%clk 0:00:46]} 16. Rfc1 {[%clk 0:02:07]}  a5 {[%clk 0:00:41]} 17. Bd3 {[%clk 0:01:56]}  Qxc2 {[%clk 0:00:35]} 18. Rxc2 {[%clk 0:01:56]}  Rab8 {[%clk 0:00:25]} 19. Bxb8 {[%clk 0:01:51]}  Rxb8 {[%clk 0:00:26]} 20. Rb1 {[%clk 0:01:24]}  Bd7 {[%clk 0:00:23]} 21. h3 {[%clk 0:00:57]}  g6 {[%clk 0:00:20]} 22. Bxe4 {[%clk 0:00:41]}  dxe4 {[%clk 0:00:20]} 23. Nc5 {[%clk 0:00:40]}  Bxc5 {[%clk 0:00:19]} 24. Rxc5 {[%clk 0:00:36]}  a4 {[%clk 0:00:18]} 25. b4 {[%clk 0:00:37]}  a3 {[%clk 0:00:16]} 26. Ra5 {[%clk 0:00:36]}  Be6 {[%clk 0:00:13]} 27. Rxa3 {[%clk 0:00:36]}  Bd5 {[%clk 0:00:13]} 28. Ra7 {[%clk 0:00:33]}  f5 {[%clk 0:00:13]} 29. g3 {[%clk 0:00:33]}  g5 {[%clk 0:00:13]} 30. Kf1 {[%clk 0:00:32]}  f4 {[%clk 0:00:12]} 31. Ke2 {[%clk 0:00:30]}  fxg3 {[%clk 0:00:12]} 32. fxg3 {[%clk 0:00:30]}  Rf8 {[%clk 0:00:12]} 33. Rf1 {[%clk 0:00:28]}  Bc4+ {[%clk 0:00:12]} 34. Kd2 {[%clk 0:00:28]}  Rf2+ {[%clk 0:00:13]} 35. Rxf2 {[%clk 0:00:28]} 1-0


[Site "https://www.chess.com"]

[Event "Titled Tuesday Blitz December 7 2021"]
[White "Piesik, Piotr"]
[Black "Mezentsev, Ivan"]
[WhiteFideId "1136194"]
[BlackFideId "13706195"]
[WhiteElo "2336"]
[BlackElo "2295"]
[Result "0-1"]
[Round "10"]
[TimeControl "180+1"]
[Date "2021.12.07"]
[WhiteClock "0:02:00"]
[BlackClock "0:01:27"]

1. Nf3 {[%clk 0:03:00]}  Nf6 {[%clk 0:02:56]} 2. g3 {[%clk 0:03:01]}  g6 {[%clk 0:02:56]} 3. Bg2 {[%clk 0:03:01]}  Bg7 {[%clk 0:02:57]} 4. O-O {[%clk 0:03:02]}  O-O {[%clk 0:02:57]} 5. d4 {[%clk 0:03:02]}  d6 {[%clk 0:02:57]} 6. Nbd2 {[%clk 0:03:03]}  Nbd7 {[%clk 0:02:55]} 7. e4 {[%clk 0:03:02]}  e5 {[%clk 0:02:49]} 8. dxe5 {[%clk 0:03:03]}  dxe5 {[%clk 0:02:47]} 9. Qe2 {[%clk 0:03:03]}  c6 {[%clk 0:02:38]} 10. a4 {[%clk 0:03:03]}  a5 {[%clk 0:02:36]} 11. b3 {[%clk 0:03:03]}  b6 {[%clk 0:02:33]} 12. Rd1 {[%clk 0:03:01]}  Ba6 {[%clk 0:02:30]} 13. Qe1 {[%clk 0:03:01]}  Qc7 {[%clk 0:02:28]} 14. Bb2 {[%clk 0:02:58]}  Rfe8 {[%clk 0:02:26]} 15. Bf1 {[%clk 0:02:58]}  Bxf1 {[%clk 0:02:21]} 16. Kxf1 {[%clk 0:02:59]}  b5 {[%clk 0:02:18]} 17. Qe2 {[%clk 0:02:56]}  Qb7 {[%clk 0:02:02]} 18. Ne1 {[%clk 0:02:55]}  Nc5 {[%clk 0:01:57]} 19. Nd3 {[%clk 0:02:53]}  Nfd7 {[%clk 0:01:54]} 20. Nxc5 {[%clk 0:02:40]}  Nxc5 {[%clk 0:01:53]} 21. Ba3 {[%clk 0:02:40]}  Ne6 {[%clk 0:01:52]} 22. Nf3 {[%clk 0:02:39]}  Nd4 {[%clk 0:01:48]} 23. Nxd4 {[%clk 0:02:39]}  exd4 {[%clk 0:01:49]} 24. Bb2 {[%clk 0:02:32]}  f5 {[%clk 0:01:39]} 25. axb5 {[%clk 0:02:32]}  cxb5 {[%clk 0:01:37]} 26. Bxd4 {[%clk 0:02:05]}  Rxe4 {[%clk 0:01:35]} 27. Qf3 {[%clk 0:02:05]}  Bxd4 {[%clk 0:01:28]} 28. Rxd4 {[%clk 0:02:01]}  Re1+ {[%clk 0:01:28]} 29. Kg2 {[%clk 0:02:00]}  Qxf3+ {[%clk 0:01:27]} 0-1


[Site "https://www.chess.com"]

[Event "Titled Tuesday Blitz December 7 2021"]
[White "Preotu, Razvan"]
[Black "Aradhya, Garg"]
[WhiteFideId "2613280"]
[BlackFideId "25006746"]
[WhiteElo "2407"]
[BlackElo "2176"]
[Result "1/2-1/2"]
[Round "10"]
[TimeControl "180+1"]
[Date "2021.12.07"]
[WhiteClock "0:00:03"]
[BlackClock "0:00:11"]

1. e4 {[%clk 0:03:00]}  e5 {[%clk 0:03:00]} 2. Nf3 {[%clk 0:03:00]}  Nc6 {[%clk 0:03:00]} 3. Bc4 {[%clk 0:03:00]}  Bc5 {[%clk 0:02:59]} 4. c3 {[%clk 0:03:00]}  Nf6 {[%clk 0:02:59]} 5. d3 {[%clk 0:03:00]}  O-O {[%clk 0:02:59]} 6. O-O {[%clk 0:03:00]}  d6 {[%clk 0:02:58]} 7. Re1 {[%clk 0:02:59]}  Ne7 {[%clk 0:02:57]} 8. d4 {[%clk 0:02:23]}  Bb6 {[%clk 0:02:56]} 9. Nbd2 {[%clk 0:02:06]}  Ng6 {[%clk 0:02:55]} 10. h3 {[%clk 0:01:57]}  exd4 {[%clk 0:02:52]} 11. cxd4 {[%clk 0:01:57]}  d5 {[%clk 0:02:45]} 12. exd5 {[%clk 0:01:55]}  Nxd5 {[%clk 0:02:46]} 13. Ne4 {[%clk 0:01:55]}  c6 {[%clk 0:02:46]} 14. Bg5 {[%clk 0:01:53]}  f6 {[%clk 0:02:45]} 15. Bd2 {[%clk 0:01:48]}  Bc7 {[%clk 0:02:22]} 16. a4 {[%clk 0:01:40]}  b6 {[%clk 0:02:19]} 17. Qb3 {[%clk 0:01:36]}  Be6 {[%clk 0:02:19]} 18. Nc5 {[%clk 0:01:31]}  bxc5 {[%clk 0:02:08]} 19. Rxe6 {[%clk 0:01:29]}  Rb8 {[%clk 0:02:09]} 20. Qa2 {[%clk 0:01:27]}  Kh8 {[%clk 0:01:49]} 21. Rxc6 {[%clk 0:01:19]}  Nb4 {[%clk 0:01:45]} 22. Bxb4 {[%clk 0:01:19]}  cxb4 {[%clk 0:01:46]} 23. Qb3 {[%clk 0:00:55]}  Nf4 {[%clk 0:01:41]} 24. Re1 {[%clk 0:00:37]}  Qd7 {[%clk 0:01:17]} 25. Bb5 {[%clk 0:00:37]}  a6 {[%clk 0:00:39]} 26. Rxa6 {[%clk 0:00:34]}  Nxh3+ {[%clk 0:00:40]} 27. gxh3 {[%clk 0:00:33]}  Qxh3 {[%clk 0:00:40]} 28. Qd3 {[%clk 0:00:21]}  Rxb5 {[%clk 0:00:35]} 29. Qxb5 {[%clk 0:00:16]}  Qg4+ {[%clk 0:00:34]} 30. Kf1 {[%clk 0:00:15]}  Qxf3 {[%clk 0:00:34]} 31. Qc6 {[%clk 0:00:15]}  Qh3+ {[%clk 0:00:28]} 32. Ke2 {[%clk 0:00:10]}  Bf4 {[%clk 0:00:20]} 33. Qe4 {[%clk 0:00:08]}  Qg4+ {[%clk 0:00:19]} 34. Kd3 {[%clk 0:00:07]}  h5 {[%clk 0:00:19]} 35. Ra8 {[%clk 0:00:06]}  Rxa8 {[%clk 0:00:16]} 36. Qxa8+ {[%clk 0:00:06]}  Kh7 {[%clk 0:00:16]} 37. Qe4+ {[%clk 0:00:07]}  Kh6 {[%clk 0:00:16]} 38. a5 {[%clk 0:00:07]}  g5 {[%clk 0:00:11]} 39. a6 {[%clk 0:00:07]}  Qd7 {[%clk 0:00:11]} 40. Qe6 {[%clk 0:00:07]}  Qb5+ {[%clk 0:00:11]} 41. Qc4 {[%clk 0:00:05]}  Qf5+ {[%clk 0:00:11]} 42. Ke2 {[%clk 0:00:03]}  Qe4+ {[%clk 0:00:11]} 43. Kf1 {[%clk 0:00:02]}  Qh1+ {[%clk 0:00:11]} 44. Ke2 {[%clk 0:00:02]}  Qe4+ {[%clk 0:00:11]} 45. Kd1 {[%clk 0:00:03]}  Qb1+ {[%clk 0:00:11]} 46. Ke2 {[%clk 0:00:03]}  Qe4+ {[%clk 0:00:11]} 1/2-1/2


[Site "https://www.chess.com"]

[Event "Titled Tuesday Blitz December 7 2021"]
[White "Punin, Andrii"]
[Black "Malka, Samuel"]
[WhiteFideId "14112639"]
[BlackFideId "20643675"]
[WhiteElo "2357"]
[BlackElo "2463"]
[Result "1/2-1/2"]
[Round "10"]
[TimeControl "180+1"]
[Date "2021.12.07"]
[WhiteClock "0:00:17"]
[BlackClock "0:00:12"]

1. e4 {[%clk 0:02:42]}  c5 {[%clk 0:02:50]} 2. Be2 {[%clk 0:02:41]}  Nc6 {[%clk 0:02:49]} 3. f4 {[%clk 0:02:41]}  d6 {[%clk 0:02:47]} 4. Nf3 {[%clk 0:02:41]}  Nf6 {[%clk 0:02:34]} 5. d3 {[%clk 0:02:41]}  Bg4 {[%clk 0:02:31]} 6. Nbd2 {[%clk 0:02:37]}  e6 {[%clk 0:02:26]} 7. O-O {[%clk 0:02:36]}  Be7 {[%clk 0:02:24]} 8. c3 {[%clk 0:02:34]}  Qc7 {[%clk 0:02:09]} 9. h3 {[%clk 0:02:33]}  Bxf3 {[%clk 0:02:10]} 10. Nxf3 {[%clk 0:02:34]}  d5 {[%clk 0:02:07]} 11. e5 {[%clk 0:02:33]}  Nd7 {[%clk 0:02:08]} 12. Be3 {[%clk 0:02:28]}  O-O-O {[%clk 0:02:02]} 13. d4 {[%clk 0:02:24]}  Kb8 {[%clk 0:01:52]} 14. Rb1 {[%clk 0:02:17]}  cxd4 {[%clk 0:01:47]} 15. cxd4 {[%clk 0:02:15]}  Rc8 {[%clk 0:01:36]} 16. Qd2 {[%clk 0:02:07]}  Bb4 {[%clk 0:01:35]} 17. Qd3 {[%clk 0:02:02]}  g6 {[%clk 0:01:20]} 18. a3 {[%clk 0:02:01]}  Be7 {[%clk 0:01:19]} 19. b4 {[%clk 0:02:01]}  Qb6 {[%clk 0:01:17]} 20. Rfc1 {[%clk 0:01:59]}  h6 {[%clk 0:01:07]} 21. h4 {[%clk 0:01:50]}  Rhd8 {[%clk 0:01:05]} 22. g3 {[%clk 0:01:50]}  Bf8 {[%clk 0:01:05]} 23. Kg2 {[%clk 0:01:50]}  Ne7 {[%clk 0:01:04]} 24. Bf2 {[%clk 0:01:49]}  Rxc1 {[%clk 0:01:03]} 25. Rxc1 {[%clk 0:01:48]}  Rc8 {[%clk 0:01:04]} 26. Qb1 {[%clk 0:01:46]}  Rxc1 {[%clk 0:01:03]} 27. Qxc1 {[%clk 0:01:46]}  Qc6 {[%clk 0:01:03]} 28. Qb2 {[%clk 0:01:25]}  Nb6 {[%clk 0:01:03]} 29. Nd2 {[%clk 0:01:23]}  Nc4 {[%clk 0:00:55]} 30. Nxc4 {[%clk 0:01:22]}  dxc4+ {[%clk 0:00:56]} 31. Bf3 {[%clk 0:01:23]}  Nd5 {[%clk 0:00:56]} 32. Kg1 {[%clk 0:01:14]}  c3 {[%clk 0:00:37]} 33. Qc2 {[%clk 0:01:11]}  Qc4 {[%clk 0:00:38]} 34. Bxd5 {[%clk 0:01:00]}  exd5 {[%clk 0:00:39]} 35. Kg2 {[%clk 0:00:58]}  a5 {[%clk 0:00:36]} 36. bxa5 {[%clk 0:00:41]}  Bxa3 {[%clk 0:00:36]} 37. Kf3 {[%clk 0:00:38]}  h5 {[%clk 0:00:34]} 38. Ke3 {[%clk 0:00:34]}  Bb4 {[%clk 0:00:34]} 39. a6 {[%clk 0:00:31]}  Qxa6 {[%clk 0:00:30]} 40. f5 {[%clk 0:00:29]}  gxf5 {[%clk 0:00:27]} 41. Qxf5 {[%clk 0:00:29]}  Qa2 {[%clk 0:00:27]} 42. Kf3 {[%clk 0:00:20]}  c2 {[%clk 0:00:20]} 43. Be3 {[%clk 0:00:21]}  Ba3 {[%clk 0:00:20]} 44. Qxf7 {[%clk 0:00:20]}  c1=Q {[%clk 0:00:19]} 45. Bxc1 {[%clk 0:00:20]}  Bxc1 {[%clk 0:00:20]} 46. e6 {[%clk 0:00:19]}  Qd2 {[%clk 0:00:18]} 47. e7 {[%clk 0:00:17]}  Qe3+ {[%clk 0:00:18]} 48. Kg2 {[%clk 0:00:17]}  Qe4+ {[%clk 0:00:15]} 49. Kh2 {[%clk 0:00:17]}  Qe2+ {[%clk 0:00:11]} 50. Kh3 {[%clk 0:00:17]}  Qg4+ {[%clk 0:00:11]} 51. Kh2 {[%clk 0:00:17]}  Qe2+ {[%clk 0:00:12]} 52. Kh3 {[%clk 0:00:17]}  Qg4+ {[%clk 0:00:12]} 53. Kg2 {[%clk 0:00:17]}  Qe2+ {[%clk 0:00:12]} 54. Kh3 {[%clk 0:00:17]} 1/2-1/2


[Site "https://www.chess.com"]

[Event "Titled Tuesday Blitz December 7 2021"]
[White "Rodchenkov, Vitaly"]
[Black "Ezat, Mohamed"]
[WhiteFideId "4152964"]
[BlackFideId "10600906"]
[WhiteElo "2337"]
[BlackElo "2400"]
[Result "0-1"]
[Round "10"]
[TimeControl "180+1"]
[Date "2021.12.07"]
[WhiteClock "0:01:08"]
[BlackClock "0:01:07"]

1. Nf3 {[%clk 0:03:00]}  Nf6 {[%clk 0:02:58]} 2. c4 {[%clk 0:03:00]}  g6 {[%clk 0:02:58]} 3. b4 {[%clk 0:03:00]}  Bg7 {[%clk 0:02:57]} 4. Bb2 {[%clk 0:03:00]}  O-O {[%clk 0:02:58]} 5. g3 {[%clk 0:02:56]}  a5 {[%clk 0:02:57]} 6. b5 {[%clk 0:02:56]}  d5 {[%clk 0:02:54]} 7. cxd5 {[%clk 0:02:55]}  Qxd5 {[%clk 0:02:53]} 8. Nc3 {[%clk 0:02:55]}  Qh5 {[%clk 0:02:47]} 9. Bg2 {[%clk 0:02:54]}  Bh3 {[%clk 0:02:25]} 10. O-O {[%clk 0:02:54]}  Ng4 {[%clk 0:02:24]} 11. Qc2 {[%clk 0:02:42]}  Nd7 {[%clk 0:02:23]} 12. Ne4 {[%clk 0:02:03]}  e5 {[%clk 0:01:45]} 13. Bxh3 {[%clk 0:01:45]}  Qxh3 {[%clk 0:01:25]} 14. Qxc7 {[%clk 0:01:40]}  Ndf6 {[%clk 0:01:17]} 15. Nxf6+ {[%clk 0:01:17]}  Bxf6 {[%clk 0:01:15]} 16. e4 {[%clk 0:01:17]}  Rfd8 {[%clk 0:01:09]} 17. Bc3 {[%clk 0:01:08]}  Rd3 {[%clk 0:01:07]} 0-1


[Site "https://www.chess.com"]

[Event "Titled Tuesday Blitz December 7 2021"]
[White "Sarana, Alexey"]
[Black "Bortnyk, Olexandr"]
[WhiteFideId "24133795"]
[BlackFideId "14120828"]
[WhiteElo "2672"]
[BlackElo "2723"]
[Result "1-0"]
[Round "10"]
[TimeControl "180+1"]
[Date "2021.12.07"]
[WhiteClock "0:01:28"]
[BlackClock "0:00:04"]

1. d4 {[%clk 0:03:00]}  f5 {[%clk 0:03:00]} 2. c4 {[%clk 0:03:01]}  Nf6 {[%clk 0:03:00]} 3. Nc3 {[%clk 0:03:02]}  d6 {[%clk 0:03:01]} 4. Bg5 {[%clk 0:03:01]}  Nbd7 {[%clk 0:02:40]} 5. e3 {[%clk 0:03:01]}  c6 {[%clk 0:02:39]} 6. Bd3 {[%clk 0:03:01]}  g6 {[%clk 0:02:38]} 7. Nge2 {[%clk 0:03:00]}  e5 {[%clk 0:02:36]} 8. f3 {[%clk 0:03:00]}  Bg7 {[%clk 0:02:29]} 9. O-O {[%clk 0:03:00]}  O-O {[%clk 0:02:28]} 10. Qc2 {[%clk 0:03:00]}  h6 {[%clk 0:02:23]} 11. Bh4 {[%clk 0:03:00]}  Qe8 {[%clk 0:02:15]} 12. Rae1 {[%clk 0:02:57]}  Qf7 {[%clk 0:02:06]} 13. b3 {[%clk 0:02:53]}  Re8 {[%clk 0:02:02]} 14. g4 {[%clk 0:02:50]}  e4 {[%clk 0:01:36]} 15. fxe4 {[%clk 0:02:51]}  Nxg4 {[%clk 0:01:36]} 16. Ng3 {[%clk 0:02:50]}  Nxe3 {[%clk 0:01:13]} 17. Rxe3 {[%clk 0:02:29]}  Bxd4 {[%clk 0:01:14]} 18. Nd1 {[%clk 0:02:26]}  f4 {[%clk 0:01:10]} 19. Ne2 {[%clk 0:02:13]}  Bxe3+ {[%clk 0:01:00]} 20. Nxe3 {[%clk 0:02:13]}  g5 {[%clk 0:01:00]} 21. Nf5 {[%clk 0:02:11]}  Re6 {[%clk 0:00:34]} 22. Be1 {[%clk 0:01:36]}  Ne5 {[%clk 0:00:32]} 23. Bc3 {[%clk 0:01:37]}  Bd7 {[%clk 0:00:19]} 24. c5 {[%clk 0:01:36]}  Nxd3 {[%clk 0:00:17]} 25. Qxd3 {[%clk 0:01:37]}  dxc5 {[%clk 0:00:18]} 26. Kh1 {[%clk 0:01:30]}  Rae8 {[%clk 0:00:18]} 27. Nxf4 {[%clk 0:01:28]}  gxf4 {[%clk 0:00:04]} 28. Rg1+ {[%clk 0:01:28]} 1-0


[Site "https://www.chess.com"]